bitfinex/quotes_BTCUSD_20251011
["timestamp","ask_amount","ask_price","bid_price","bid_amount"]
[1760163229348,0.92200805,112620.0,112610.0,0.07390378]
[1760163230408,0.0267299,112620.0,112610.0,0.2515079]
[1760163230736,0.20431825,112620.0,112610.0,0.2515079]
[1760163231079,0.20431825,112620.0,112610.0,0.33097721]
[1760163232080,0.20431825,112620.0,112610.0,0.2515079]
[1760163232306,0.20431825,112620.0,112610.0,0.33097721]
[1760163232481,0.20431825,112620.0,112610.0,0.2515079]
[1760163233401,0.20431825,112620.0,112610.0,0.33097721]
[1760163234209,0.20431825,112620.0,112610.0,0.15337309]
[1760163234387,0.20431825,112620.0,112610.0,0.07390378]
[1760163235415,0.20431825,112620.0,112610.0,0.15337309]
[1760163235618,0.54431825,112620.0,112610.0,0.15337309]
[1760163235814,0.54431825,112620.0,112610.0,0.07390378]
[1760163236645,0.56600825,112620.0,112610.0,0.12034309]
[1760163236850,0.61523825,112620.0,112610.0,0.11426245]
[1760163237051,0.58244825,112620.0,112610.0,0.15272245]
[1760163237250,0.56075825,112620.0,112610.0,0.15272245]
[1760163237455,0.58244825,112620.0,112610.0,0.15272245]
[1760163237657,0.58244825,112620.0,112610.0,0.11426245]
[1760163237876,0.54431825,112620.0,112610.0,0.18515245]
[1760163238312,0.54431825,112620.0,112610.0,0.36275657]
[1760163238875,0.54431825,112620.0,112610.0,0.18515245]
[1760163240530,0.3667299,112620.0,112610.0,0.18515245]
[1760163240917,0.90772964,112660.0,112630.0,0.17754352]
[1760163240918,0.17753428,112660.0,112630.0,0.17754352]
[1760163241194,0.20425842,112650.0,112640.0,0.30663107]
[1760163241367,0.02671723,112650.0,112640.0,0.32795107]
[1760163241750,0.36671723,112650.0,112640.0,0.32795107]
[1760163241961,0.02671723,112650.0,112640.0,0.32795107]
[1760163242642,0.36671723,112650.0,112640.0,0.32795107]
[1760163242886,0.54425828,112650.0,112640.0,0.32795107]
[1760163243062,0.54425828,112650.0,112640.0,0.15039426]
[1760163243265,0.54425828,112650.0,112640.0,0.32795107]
[1760163243803,0.36671723,112650.0,112640.0,0.32795107]
[1760163244648,0.34015031,112660.0,112650.0,0.17754105]
[1760163244852,0.34015031,112660.0,112650.0,0.32782969]
[1760163245050,0.36686619,112660.0,112650.0,0.32782969]
[1760163245878,0.54539148,112660.0,112650.0,0.32782969]
[1760163246291,0.54439148,112660.0,112650.0,0.32782969]
[1760163246434,0.54439148,112660.0,112650.0,0.15123815]
[1760163247033,0.54439148,112660.0,112650.0,0.07183951]
[1760163247353,1.27080074,112660.0,112650.0,0.00094951]
[1760163247560,1.23801074,112660.0,112650.0,0.02226951]
[1760163247890,1.22157074,112660.0,112650.0,0.03940951]
[1760163248480,1.19988074,112660.0,112650.0,0.03940951]
[1760163248702,1.22157074,112660.0,112650.0,0.03940951]
[1760163249875,0.98559148,112660.0,112650.0,0.07183951]
[1760163250324,0.98559148,112660.0,112650.0,0.24938056]
[1760163250792,0.98559148,112660.0,112650.0,0.07183951]
[1760163251039,0.80806619,112660.0,112650.0,0.3287792]
[1760163251676,0.02686619,112660.0,112650.0,0.3287792]
[1760163251883,0.00015031,112660.0,112650.0,0.3287792]
[1760163252093,0.00015031,112660.0,112650.0,0.36072204]
[1760163253044,0.00015031,112660.0,112650.0,0.39087394]
[1760163254570,0.00015031,112660.0,112650.0,0.27953246]
[1760163255286,0.00015031,112660.0,112650.0,0.68053246]
[1760163256339,0.00015031,112660.0,112650.0,0.759623]
[1760163256571,0.34015031,112660.0,112650.0,0.759623]
[1760163257293,0.34015031,112660.0,112650.0,0.3294711]
[1760163257673,0.00015031,112660.0,112650.0,0.3294711]
[1760163263494,0.34015031,112660.0,112650.0,0.3294711]
[1760163264726,0.00015031,112660.0,112650.0,0.3294711]
[1760163266175,0.00015031,112660.0,112650.0,0.25038056]
[1760163266493,0.00015031,112660.0,112650.0,0.36172204]
[1760163267778,0.00015031,112660.0,112650.0,0.39187394]
[1760163270411,2.654e-05,112660.0,112650.0,0.39187394]
[1760163270614,2.654e-05,112660.0,112650.0,0.28053246]
[1760163271764,2.654e-05,112660.0,112650.0,0.68053246]
[1760163274639,2.654e-05,112660.0,112650.0,0.28053246]
[1760163275191,2.654e-05,112660.0,112650.0,0.68053246]
[1760163278222,2.654e-05,112660.0,112650.0,0.28053246]
[1760163278444,0.00057568,112670.0,112660.0,0.20767719]
[1760163278666,0.00057568,112670.0,112660.0,0.3670998]
[1760163278828,0.00057568,112670.0,112660.0,0.3886698]
[1760163280686,1.31533632,112670.0,112660.0,0.11111261]
[1760163280885,1.31533632,112670.0,112650.0,0.08037339]
[1760163280886,0.51752529,112660.0,112650.0,0.08037339]
[1760163281040,0.56569529,112660.0,112650.0,0.00094951]
[1760163281246,0.58943385,112660.0,112650.0,0.00094951]
[1760163281822,0.61615415,112660.0,112650.0,0.00094951]
[1760163282203,0.64090081,112660.0,112650.0,0.00094951]
[1760163282405,0.64190081,112660.0,112650.0,0.00094951]
[1760163282599,0.64190081,112660.0,112620.0,0.11111261]
[1760163282600,0.51757258,112630.0,112620.0,0.18666353]
[1760163282743,1.19522184,112630.0,112620.0,0.20838384]
[1760163282944,1.19522184,112630.0,112620.0,0.11689784]
[1760163283365,1.22194562,112630.0,112620.0,0.11689784]
[1760163283697,1.23810562,112630.0,112620.0,0.11689784]
[1760163285618,0.54429636,112630.0,112620.0,0.24826866]
[1760163285837,0.54429636,112630.0,112620.0,0.07068031]
[1760163286040,0.51757258,112630.0,112620.0,0.24826866]
[1760163286647,0.51757258,112630.0,112620.0,0.07068031]
[1760163286999,0.51757258,112630.0,112620.0,0.24826866]
[1760163287616,0.51757258,112630.0,112620.0,0.00015031]
[1760163287617,1.21109184,112630.0,112620.0,0.00015031]
[1760163287847,1.21109184,112630.0,112620.0,0.03825031]
[1760163288056,1.21109184,112630.0,112620.0,0.25077658]
[1760163288057,0.34,112630.0,112620.0,0.25077658]
[1760163288295,0.00094946,112660.0,112650.0,0.17754105]
[1760163288514,0.00094946,112660.0,112650.0,0.24885105]
[1760163288664,0.51847475,112660.0,112650.0,0.24885105]
[1760163290203,0.51947475,112660.0,112650.0,0.24885105]
[1760163292219,0.34194946,112660.0,112650.0,0.24885105]
[1760163292834,0.00194946,112660.0,112650.0,0.24885105]
[1760163293151,0.00194946,112660.0,112650.0,0.3280905]
[1760163293315,0.00094946,112660.0,112650.0,0.3280905]
[1760163295413,0.00094946,112660.0,112650.0,0.3582424]
[1760163296412,0.00094946,112660.0,112650.0,0.27900295]
[1760163297106,0.00094946,112660.0,112650.0,0.35920304]
[1760163297336,0.00094946,112660.0,112650.0,0.28000295]
[1760163297749,0.00094946,112660.0,112650.0,0.68000295]
[1760163298642,0.00094946,112660.0,112650.0,0.79094806]
[1760163300755,0.00094946,112660.0,112650.0,0.39094806]
[1760163301158,0.00094946,112660.0,112650.0,0.79094806]
[1760163301357,0.34094946,112660.0,112650.0,0.24985105]
[1760163301760,0.34094946,112660.0,112650.0,0.28000295]
[1760163302073,0.34094946,112660.0,112650.0,0.39094806]
[1760163302683,0.00094946,112660.0,112650.0,0.39094806]
[1760163303791,0.00094946,112660.0,112650.0,0.91304638]
[1760163303998,0.00018513,112660.0,112650.0,0.80210127]
[1760163304855,0.00018513,112660.0,112650.0,0.80110127]
[1760163305092,0.00018513,112660.0,112650.0,0.80310127]
[1760163305546,0.00018513,112660.0,112650.0,1.20310127]
[1760163307800,0.00018513,112660.0,112650.0,0.70600294]
[1760163308008,0.00018513,112660.0,112650.0,1.20310127]
[1760163308226,0.00018513,112660.0,112650.0,1.31401458]
[1760163308439,0.00018513,112660.0,112650.0,0.81691625]
[1760163308673,0.00018513,112660.0,112650.0,0.79191626]
[1760163309316,0.00018513,112660.0,112650.0,1.31401458]
[1760163309521,0.00018513,112660.0,112650.0,1.20310127]
[1760163311322,1e-08,112660.0,112650.0,1.20310127]
[1760163311530,1e-08,112660.0,112650.0,1.30310126]
[1760163311944,0.0103982,112680.0,112670.0,0.23266143]
[1760163312149,0.0103982,112680.0,112670.0,0.85613097]
[1760163312367,0.0103982,112680.0,112670.0,0.91123097]
[1760163312808,0.0103982,112680.0,112670.0,0.81413264]
[1760163313865,0.01044832,112680.0,112670.0,0.81413264]
[1760163314517,0.01044832,112680.0,112670.0,1.31123097]
[1760163315215,0.01044832,112680.0,112670.0,0.81413264]
[1760163315441,0.01044832,112680.0,112670.0,1.31123097]
[1760163316764,0.01044832,112680.0,112670.0,1.31223097]
[1760163317184,0.01044832,112680.0,112670.0,1.31323097]
[1760163317629,0.3402,112720.0,112670.0,1.31323097]
[1760163317630,0.51743231,112720.0,112670.0,1.31323097]
[1760163317875,0.07043184,112710.0,112700.0,0.19421228]
[1760163318109,0.3544571,112720.0,112710.0,0.17744654]
[1760163318317,0.1770263,112720.0,112710.0,0.24962654]
[1760163318944,5.013e-05,112720.0,112710.0,0.24962654]
[1760163319173,5.013e-05,112720.0,112710.0,0.32888565]
[1760163319359,0.00105013,112720.0,112710.0,0.24962654]
[1760163319564,5.013e-05,112720.0,112710.0,0.24962654]
[1760163319980,0.00105013,112720.0,112710.0,0.24962654]
[1760163320119,0.00205013,112720.0,112710.0,0.24962654]
[1760163320543,0.00105013,112720.0,112710.0,0.24962654]
[1760163320743,0.00205013,112720.0,112710.0,0.24962654]
[1760163321249,0.00105013,112720.0,112710.0,0.24962654]
[1760163322060,5.013e-05,112720.0,112710.0,0.24962654]
[1760163323681,1.05085926,112720.0,112710.0,0.03862]
[1760163323887,0.51744654,112710.0,112700.0,0.01675]
[1760163324094,0.51746228,112700.0,112690.0,0.01675]
[1760163324325,0.51746228,112700.0,112680.0,0.30704957]
[1760163324326,1.01456061,112700.0,112680.0,0.22779046]
[1760163324537,1.03007636,112690.0,112680.0,0.01675]
[1760163324740,0.34,112690.0,112680.0,0.22780378]
[1760163324947,0.34,112690.0,112680.0,0.24967378]
[1760163325161,1.08184636,112690.0,112670.0,0.27446795]
[1760163325365,0.51749378,112680.0,112670.0,0.09695841]
[1760163325545,0.51749378,112680.0,112670.0,0.19520884]
[1760163325777,0.35516,112680.0,112670.0,0.21707884]
[1760163325975,0.34,112680.0,112670.0,0.32989795]
[1760163326179,0.51749378,112680.0,112670.0,0.32989795]
[1760163326888,0.51749378,112680.0,112670.0,0.33089795]
[1760163327086,0.34,112680.0,112670.0,0.33189795]
[1760163327717,0.34,112680.0,112670.0,0.25263884]
[1760163328134,0.34,112680.0,112670.0,0.36353005]
[1760163328363,0.51749378,112680.0,112670.0,0.36353005]
[1760163328566,0.55426378,112680.0,112670.0,0.14946051]
[1760163328774,1.08201211,112680.0,112670.0,0.11289121]
[1760163329746,1.08111211,112680.0,112670.0,0.11289121]
[1760163329947,1.08111211,112680.0,112670.0,0.11189121]
[1760163330155,0.58401378,112680.0,112670.0,0.11089121]
[1760163330316,1.08111211,112680.0,112670.0,0.11089121]
[1760163332023,0.71136211,112680.0,112670.0,0.21612954]
[1760163332391,0.71136211,112680.0,112670.0,0.03862]
[1760163333493,0.51750954,112670.0,112660.0,0.27354656]
[1760163333715,0.51750954,112670.0,112660.0,0.32902668]
[1760163334180,1.08202787,112670.0,112660.0,0.07932139]
[1760163334392,1.08202787,112670.0,112660.0,5.012e-05]
[1760163334609,1.05137787,112670.0,112660.0,0.02192012]
[1760163334824,1.05137787,112670.0,112660.0,0.19944541]
[1760163335485,1.05137787,112670.0,112660.0,0.17757541]
[1760163335665,1.05137787,112670.0,112660.0,0.19944541]
[1760163335813,1.05137787,112670.0,112660.0,0.02192012]
[1760163336014,1.05137787,112670.0,112660.0,0.19944541]
[1760163336258,1.05137787,112670.0,112660.0,0.29546668]
[1760163336612,0.86381247,112690.0,112680.0,0.17749378]
[1760163336838,0.86381247,112690.0,112680.0,0.06339575]
[1760163336839,1.09087026,112690.0,112680.0,0.06339575]
[1760163337691,0.88274223,112690.0,112680.0,0.27950953]
[1760163337905,1.06022026,112690.0,112680.0,0.10201575]
[1760163338380,1.06022026,112690.0,112680.0,0.06339575]
[1760163338603,1.09087026,112690.0,112680.0,0.06339575]
[1760163338832,0.17749378,112680.0,112670.0,0.06339575]
[1760163339040,0.49709833,112680.0,112670.0,0.31308447]
[1760163339260,0.51916759,112680.0,112670.0,0.27952447]
[1760163339480,0.00094926,112680.0,112670.0,0.24968872]
[1760163339694,0.00094926,112680.0,112670.0,0.32895999]
[1760163341230,0.00094926,112680.0,112670.0,0.35911189]
[1760163341429,0.00013534,112680.0,112670.0,0.39073183]
[1760163341601,0.00013534,112680.0,112670.0,0.39173183]
[1760163342013,0.00013534,112680.0,112670.0,0.39073183]
[1760163342224,0.00013534,112680.0,112670.0,0.39173183]
[1760163342425,0.00013534,112680.0,112670.0,0.39273183]
[1760163342860,0.00013534,112680.0,112670.0,0.39173183]
[1760163343061,0.00013534,112680.0,112670.0,0.39273183]
[1760163343265,0.00013534,112680.0,112670.0,0.36257993]
[1760163344729,0.00013534,112680.0,112670.0,0.25168872]
[1760163345573,0.51762912,112680.0,112670.0,0.33094575]
[1760163345783,0.53909912,112680.0,112670.0,0.29692688]
[1760163345996,0.51762912,112680.0,112670.0,0.29692688]
[1760163346203,0.53909912,112680.0,112670.0,0.11941734]
[1760163346419,1.05185745,112680.0,112670.0,0.11941734]
[1760163346851,1.08282745,112680.0,112670.0,0.0654197]
[1760163347701,1.08282745,112680.0,112670.0,0.0644197]
[1760163348152,1.08282745,112680.0,112670.0,0.0634197]
[1760163350232,0.51750954,112670.0,112660.0,0.09663205]
[1760163350435,0.50699248,112670.0,112660.0,0.33754396]
[1760163350644,0.32948294,112670.0,112660.0,0.24726113]
[1760163351468,0.32948294,112670.0,112660.0,0.32651734]
[1760163352962,0.32948294,112670.0,112660.0,0.11825205]
[1760163352963,0.52837248,112670.0,112660.0,0.11825205]
[1760163353236,0.54447248,112670.0,112660.0,0.11925205]
[1760163353487,0.54447248,112670.0,112660.0,0.03999584]
[1760163353700,0.54447248,112670.0,112660.0,0.00162584]
[1760163353701,1.04157081,112670.0,112660.0,0.00162584]
[1760163353904,1.04157081,112670.0,112660.0,0.03916584]
[1760163354106,1.07255081,112670.0,112660.0,0.00162584]
[1760163354311,1.07255081,112670.0,112660.0,0.00262584]
[1760163355457,1.23055596,112670.0,112660.0,0.00262584]
[1760163355855,1.23055596,112670.0,112660.0,0.00162584]
[1760163356114,1.23055596,112670.0,112660.0,0.00062584]
[1760163356791,1.23055596,112670.0,112660.0,0.06414437]
[1760163360452,1.23055596,112670.0,112660.0,0.07988205]
[1760163361492,1.23055596,112670.0,112660.0,0.00062584]
[1760163361662,1.23055596,112670.0,112660.0,0.06417062]
[1760163362446,1.23055596,112670.0,112660.0,0.06414665]
[1760163363756,1.23055596,112670.0,112660.0,0.00062584]
[1760163366932,0.90107302,112670.0,112660.0,0.00062584]
[1760163367382,0.92779475,112670.0,112660.0,0.00062584]
[1760163368716,0.95379474,112670.0,112660.0,0.00062584]
[1760163368925,1.29379474,112670.0,112660.0,0.00062584]
[1760163369153,1.29479474,112670.0,112660.0,0.00062584]
[1760163369377,1.26979475,112670.0,112660.0,0.00062584]
[1760163370275,1.29379474,112670.0,112660.0,0.00062584]
[1760163370614,1.29479474,112670.0,112660.0,0.00062584]
[1760163370839,1.29379474,112670.0,112660.0,0.00062584]
[1760163371071,1.29279474,112670.0,112660.0,0.00062584]
[1760163371281,1.29379474,112670.0,112660.0,0.00062584]
[1760163371505,1.26979475,112670.0,112660.0,0.00062584]
[1760163373230,1.07701598,112670.0,112660.0,0.00062584]
[1760163373493,1.25090553,112670.0,112660.0,0.00062584]
[1760163373993,1.19599302,112670.0,112660.0,0.02324584]
[1760163374440,0.002,112670.0,112660.0,0.07116584]
[1760163374655,0.002,112670.0,112660.0,0.24869113]
[1760163374865,0.002,112670.0,112660.0,0.27884303]
[1760163375064,0.00013534,112680.0,112670.0,0.17750954]
[1760163375296,0.00013534,112680.0,112670.0,0.22342954]
[1760163375650,0.00013534,112680.0,112670.0,0.27620144]
[1760163375854,0.00013534,112680.0,112670.0,0.24804954]
[1760163376278,0.34013534,112680.0,112670.0,0.24804954]
[1760163377656,0.34013534,112680.0,112670.0,0.25004954]
[1760163378917,0.54768912,112680.0,112670.0,0.002]
[1760163379125,0.57207912,112680.0,112670.0,0.002]
[1760163379966,0.57207912,112680.0,112670.0,0.001]
[1760163380515,0.17750954,112670.0,112660.0,0.01683584]
[1760163380899,0.17754105,112650.0,112640.0,0.02326036]
[1760163381115,0.17754105,112650.0,112640.0,0.04603067]
[1760163382339,0.17754105,112650.0,112640.0,0.04703067]
[1760163383072,0.17754105,112650.0,112640.0,0.07874067]
[1760163383277,0.17754105,112650.0,112640.0,0.07169031]
[1760163383694,0.17754105,112650.0,112640.0,0.07269031]
[1760163385064,0.51752529,112660.0,112640.0,0.25024712]
[1760163385266,0.51752529,112660.0,112650.0,0.0468]
[1760163385484,0.51752529,112660.0,112650.0,0.06942]
[1760163386494,0.51752529,112660.0,112650.0,0.07080982]
[1760163387144,0.34,112660.0,112650.0,0.07080982]
[1760163387359,0.18638501,112670.0,112650.0,0.24835087]
[1760163387581,0.34,112670.0,112660.0,0.22544529]
[1760163387780,0.34,112670.0,112660.0,0.24806529]
[1760163388403,0.51750954,112670.0,112660.0,0.07054]
[1760163390881,0.39747803,112670.0,112660.0,0.07054]
[1760163392665,0.43451803,112670.0,112660.0,0.01621]
[1760163392849,0.43451803,112670.0,112660.0,0.01702399]
[1760163393055,0.43451803,112670.0,112660.0,0.03964399]
[1760163393397,0.43451803,112670.0,112660.0,0.01702399]
[1760163393614,0.43451803,112670.0,112660.0,0.03964399]
[1760163393813,0.43451803,112670.0,112660.0,0.00081399]
[1760163394015,0.43451803,112670.0,112660.0,0.02343399]
[1760163394215,0.41319803,112670.0,112660.0,0.03964399]
[1760163394458,0.41879803,112670.0,112660.0,0.03964399]
[1760163394660,0.39747803,112670.0,112660.0,0.07135399]
[1760163395247,0.41879803,112670.0,112660.0,0.03964399]
[1760163395446,0.43451803,112670.0,112660.0,0.03964399]
[1760163395833,0.46711803,112670.0,112660.0,0.00081399]
[1760163397577,0.43451803,112670.0,112660.0,0.02343399]
[1760163397993,0.43451803,112670.0,112660.0,0.03964399]
[1760163399669,0.39747803,112670.0,112660.0,0.07135399]
[1760163400462,0.39747803,112670.0,112660.0,0.24887928]
[1760163400670,0.39747803,112670.0,112660.0,0.1506102]
[1760163401165,0.39747803,112670.0,112660.0,0.1822452]
[1760163403632,0.39747803,112670.0,112660.0,0.18294717]
[1760163404397,0.39747803,112670.0,112660.0,0.07135399]
[1760163404799,0.39747803,112670.0,112660.0,0.1829428]
[1760163405239,0.41847803,112670.0,112660.0,0.1512328]
[1760163405452,0.39747803,112670.0,112660.0,0.1512328]
[1760163405866,0.39747803,112670.0,112660.0,0.1827228]
[1760163406072,0.43390803,112670.0,112660.0,0.1512328]
[1760163406478,0.46579803,112670.0,112660.0,0.1512328]
[1760163406681,0.46579803,112670.0,112660.0,0.1124028]
[1760163406886,0.39747803,112670.0,112660.0,0.1510228]
[1760163407096,0.21996849,112670.0,112660.0,0.36003809]
[1760163407304,0.39747803,112670.0,112660.0,0.36003809]
[1760163407474,0.17750954,112670.0,112660.0,0.32813206]
[1760163408501,0.17750954,112670.0,112660.0,0.32913206]
[1760163408751,0.17750954,112670.0,112660.0,0.15160677]
[1760163409662,0.17750954,112670.0,112660.0,0.15260677]
[1760163414557,0.17750954,112670.0,112660.0,0.33013206]
[1760163414717,0.34,112670.0,112660.0,0.33013206]
[1760163415323,0.00071101,112680.0,112670.0,0.17750954]
[1760163415526,0.00071101,112680.0,112670.0,0.25083954]
[1760163415694,0.34071101,112680.0,112670.0,0.25083954]
[1760163416216,0.34071101,112680.0,112670.0,0.33052232]
[1760163417606,0.34071101,112680.0,112670.0,0.36230925]
[1760163417808,0.17747959,112690.0,112670.0,0.44193158]
[1760163418016,0.17747959,112690.0,112680.0,0.01677]
[1760163418218,0.19986959,112690.0,112680.0,0.03956]
[1760163418842,0.21595959,112690.0,112680.0,0.03956]
[1760163419246,0.2160097,112690.0,112680.0,0.03956]
[1760163420167,0.5560097,112690.0,112680.0,0.03956]
[1760163421248,0.17749378,112680.0,112670.0,0.09639233]
[1760163421453,0.22491378,112680.0,112670.0,0.01677]
[1760163421665,0.21597378,112680.0,112670.0,0.03956]
[1760163422225,0.17750954,112670.0,112660.0,0.12948233]
[1760163422537,0.17750954,112670.0,112660.0,0.15227233]
[1760163423332,0.17750954,112670.0,112660.0,0.11850233]
[1760163423513,0.19358378,112680.0,112660.0,0.32979762]
[1760163423714,0.17750954,112670.0,112660.0,0.29702762]
[1760163423963,0.17750954,112670.0,112660.0,0.29855268]
[1760163424369,0.17750954,112670.0,112660.0,0.33332268]
[1760163424739,0.17749378,112680.0,112660.0,0.33332268]
[1760163424937,0.4412,112670.0,112660.0,0.29802762]
[1760163425138,0.61870954,112670.0,112660.0,0.29702762]
[1760163425343,0.61870954,112670.0,112660.0,0.11950233]
[1760163425546,0.61870954,112670.0,112660.0,0.32979762]
[1760163425746,0.61870954,112670.0,112660.0,0.25017529]
[1760163426169,0.61870954,112670.0,112660.0,0.25117529]
[1760163426578,0.4412,112670.0,112660.0,0.25117529]
[1760163427680,0.27317678,112670.0,112660.0,0.25217529]
[1760163428397,0.27317678,112670.0,112660.0,0.33171586]
[1760163428966,0.61317678,112670.0,112660.0,0.33171586]
[1760163429169,0.79068632,112670.0,112660.0,0.33171586]
[1760163430857,0.61317678,112670.0,112660.0,0.33171586]
[1760163431263,0.61317678,112670.0,112660.0,0.33324092]
[1760163431512,0.61317678,112670.0,112660.0,0.33323121]
[1760163431989,0.79068632,112670.0,112660.0,0.33323121]
[1760163432811,0.61317678,112670.0,112660.0,0.33323121]
[1760163434274,0.61317678,112670.0,112660.0,0.33324525]
[1760163434467,0.61317678,112670.0,112660.0,0.25370035]
[1760163435273,0.61317678,112670.0,112660.0,0.33325099]
[1760163435651,0.61317678,112670.0,112660.0,0.25370035]
[1760163437646,0.59873165,112670.0,112660.0,0.25370035]
[1760163438088,0.87192715,112670.0,112660.0,0.36503287]
[1760163438492,0.87192715,112670.0,112660.0,0.25370035]
[1760163438687,0.53192715,112670.0,112660.0,0.25370035]
[1760163438927,0.09072715,112670.0,112660.0,0.28385225]
[1760163439270,0.06521013,112670.0,112660.0,0.28385225]
[1760163439468,0.00062563,112690.0,112660.0,0.28385225]
[1760163439469,0.00062563,112690.0,112680.0,0.17749378]
[1760163439670,0.00062563,112690.0,112680.0,0.19461378]
[1760163439903,0.00062563,112690.0,112680.0,0.21735378]
[1760163440105,0.00062563,112690.0,112680.0,0.25108378]
[1760163440880,0.00062563,112690.0,112680.0,0.25208378]
[1760163441306,0.00062563,112690.0,112680.0,0.28323568]
[1760163442896,0.00062563,112690.0,112680.0,0.68323568]
[1760163444187,0.00062563,112690.0,112680.0,0.70823567]
[1760163445674,0.00062563,112690.0,112680.0,0.70623567]
[1760163445884,0.00062563,112690.0,112680.0,0.71023567]
[1760163446315,0.00062563,112690.0,112680.0,0.81023566]
[1760163446758,0.00062563,112690.0,112680.0,1.15023566]
[1760163446970,1e-08,112690.0,112680.0,1.26156818]
[1760163447349,1e-08,112690.0,112680.0,1.28618001]
[1760163447711,1e-08,112690.0,112680.0,1.38618]
[1760163448132,0.0052,112730.0,112720.0,0.33258268]
[1760163448351,0.00570127,112730.0,112720.0,0.34894268]
[1760163448550,0.00570127,112730.0,112720.0,0.40541268]
[1760163448752,0.00800243,112730.0,112720.0,0.40541268]
[1760163449431,0.00800243,112730.0,112720.0,0.48558148]
[1760163449644,0.00800243,112730.0,112720.0,0.80641268]
[1760163449853,0.0002,112740.0,112730.0,0.17741506]
[1760163449973,0.00028895,112740.0,112730.0,0.19377506]
[1760163450177,0.00028895,112740.0,112730.0,0.30539695]
[1760163450381,0.00028895,112740.0,112730.0,0.40539694]
[1760163450382,1e-08,112740.0,112730.0,0.40539694]
[1760163450604,1e-08,112740.0,112730.0,0.82450954]
[1760163451077,1e-08,112740.0,112730.0,0.82550954]
[1760163451650,0.0002,112750.0,112730.0,0.82550954]
[1760163451651,0.00788748,112770.0,112750.0,0.20237051]
[1760163451859,0.0079764,112770.0,112760.0,0.36067852]
[1760163452369,8.892e-05,112770.0,112760.0,0.36067852]
[1760163452581,8.892e-05,112770.0,112760.0,0.25019786]
[1760163452989,8.892e-05,112770.0,112760.0,0.65019786]
[1760163453226,8.892e-05,112770.0,112760.0,0.72890085]
[1760163453432,8.892e-05,112770.0,112760.0,0.72990085]
[1760163453644,8.892e-05,112770.0,112760.0,0.78505274]
[1760163453841,8.892e-05,112770.0,112760.0,0.70634975]
[1760163454278,8.892e-05,112770.0,112760.0,0.78495288]
[1760163454498,8.892e-05,112770.0,112760.0,0.78595288]
[1760163455295,8.892e-05,112770.0,112760.0,0.70734975]
[1760163455555,8.892e-05,112770.0,112760.0,0.78595288]
[1760163455686,8.892e-05,112770.0,112760.0,0.70734975]
[1760163455888,0.00238886,112770.0,112760.0,0.70734975]
[1760163456490,0.00238886,112770.0,112760.0,0.78595288]
[1760163461740,0.00019421,112770.0,112760.0,0.70734975]
[1760163462275,0.00019421,112770.0,112760.0,0.78567806]
[1760163463079,0.00019421,112770.0,112760.0,0.76067807]
[1760163463577,0.00019421,112770.0,112760.0,0.73052617]
[1760163464051,0.00019421,112770.0,112760.0,0.76067807]
[1760163465205,0.00019421,112770.0,112760.0,0.78567806]
[1760163465399,0.00019421,112770.0,112760.0,0.70734975]
[1760163467199,0.00019421,112770.0,112760.0,0.9178304]
[1760163471568,0.00019421,112770.0,112760.0,0.80734974]
[1760163471780,0.00047414,112780.0,112770.0,0.20235212]
[1760163471981,0.00047414,112780.0,112770.0,0.36236077]
[1760163472156,0.00047414,112780.0,112770.0,0.38414077]
[1760163473883,0.00047414,112780.0,112770.0,0.38514077]
[1760163474088,0.00047414,112780.0,112770.0,0.38614077]
[1760163474694,0.00047414,112780.0,112770.0,0.38514077]
[1760163475099,0.00047414,112780.0,112770.0,0.38614077]
[1760163475309,0.00047414,112780.0,112770.0,0.27614212]
[1760163475528,0.00047414,112780.0,112770.0,0.67614212]
[1760163476091,0.00047414,112780.0,112770.0,0.65114213]
[1760163476305,4.221e-05,112780.0,112770.0,0.65014213]
[1760163476539,4.221e-05,112780.0,112770.0,0.65114213]
[1760163476784,4.221e-05,112780.0,112770.0,0.65014213]
[1760163477163,4.221e-05,112780.0,112770.0,0.65114213]
[1760163477515,0.00061704,112780.0,112770.0,0.65114213]
[1760163477672,0.00061704,112780.0,112770.0,0.65014213]
[1760163477849,0.00061704,112780.0,112770.0,0.65114213]
[1760163479102,0.00061704,112780.0,112770.0,0.68129403]
[1760163480474,0.00061704,112780.0,112770.0,0.83912354]
[1760163481299,0.00061704,112780.0,112770.0,0.68129403]
[1760163481502,3.295e-05,112780.0,112770.0,0.68129403]
[1760163481659,0.2499905,112810.0,112790.0,0.17732068]
[1760163481888,0.62313076,112810.0,112800.0,0.07932458]
[1760163482100,1.29890903,112810.0,112800.0,0.07932458]
[1760163482304,0.51730496,112800.0,112790.0,0.09568458]
[1760163482664,0.56602496,112800.0,112790.0,0.07932458]
[1760163482790,0.58850496,112800.0,112790.0,0.07932458]
[1760163483597,0.51732068,112790.0,112780.0,0.07932458]
[1760163483815,1.21933895,112790.0,112780.0,0.07932458]
[1760163484019,1.24181895,112790.0,112780.0,0.07932458]
[1760163484470,1.26850434,112790.0,112780.0,0.07932458]
[1760163484976,0.1773364,112780.0,112770.0,0.07932458]
[1760163485137,0.90183467,112780.0,112770.0,0.07932458]
[1760163485325,1.24183467,112780.0,112770.0,0.07932458]
[1760163485534,0.17735213,112770.0,112760.0,0.07932458]
[1760163485801,0.58855213,112770.0,112760.0,0.07932458]
[1760163486829,0.17736786,112760.0,112750.0,0.27306545]
[1760163487040,0.87938613,112760.0,112750.0,0.0794135]
[1760163487237,0.90186613,112760.0,112750.0,0.0794135]
[1760163487514,0.86887613,112760.0,112750.0,0.1011935]
[1760163487718,0.90186613,112760.0,112750.0,0.0794135]
[1760163487975,0.90186613,112760.0,112750.0,0.25679709]
[1760163488676,0.90186613,112760.0,112750.0,0.0794135]
[1760163488961,0.9285565,112760.0,112750.0,0.0794135]
[1760163490055,1.2685565,112760.0,112750.0,8.892e-05]
[1760163490258,1.2685565,112760.0,112750.0,0.06344086]
[1760163491809,1.2685565,112760.0,112750.0,8.892e-05]
[1760163492220,1.2685565,112760.0,112750.0,0.06342187]
[1760163492423,1.2695565,112760.0,112750.0,0.06342187]
[1760163492605,1.2695565,112760.0,112750.0,0.06552016]
[1760163492980,1.2695565,112760.0,112750.0,0.00218721]
[1760163502296,1.29455649,112760.0,112750.0,0.00218721]
[1760163503458,1.29655449,112760.0,112750.0,0.00218721]
[1760163507051,1.29455649,112760.0,112750.0,0.00218721]
[1760163508048,1.2695565,112760.0,112750.0,0.00218721]
[1760163512532,0.68098864,112760.0,112750.0,0.2508508]
[1760163512734,0.65429827,112760.0,112750.0,0.2508508]
[1760163513144,0.001,112760.0,112750.0,0.2508508]
[1760163513428,0.20404388,112770.0,112750.0,0.2508508]
[1760163513669,0.17736786,112760.0,112750.0,0.07136892]
[1760163513874,0.51736786,112760.0,112750.0,0.07136892]
[1760163514200,0.51736786,112760.0,112750.0,0.07346721]
[1760163514513,0.51736786,112760.0,112750.0,0.2508508]
[1760163514699,1.24317613,112760.0,112750.0,0.00218721]
[1760163515164,1.03196827,112760.0,112750.0,0.02554721]
[1760163515315,0.99329827,112760.0,112750.0,0.2508508]
[1760163515521,1.17066613,112760.0,112750.0,0.2508508]
[1760163515722,1.19297613,112760.0,112750.0,0.2182408]
[1760163515903,1.20933613,112760.0,112750.0,0.04085721]